bitfinex/quotes_BTCUSD_20250316
["timestamp","ask_amount","ask_price","bid_price","bid_amount"]
[1742163863821,0.206126,82474.0,82470.0,0.2352375]
[1742163864027,0.20613,82472.0,82470.0,0.0412285]
[1742163864510,0.012125,82471.0,82470.0,0.0412285]
[1742163864830,0.206154,82462.0,82461.0,0.00029422]
[1742163865580,0.194021,82466.0,82461.0,0.00029422]
[1742163865722,0.0190036,82471.0,82470.0,0.012125]
[1742163866072,0.0009958,82478.0,82476.0,0.273093]
[1742163866210,0.193987,82480.0,82476.0,0.0791]
[1742163866416,0.193993,82477.0,82476.0,0.0791]
[1742163866617,0.012124,82478.0,82476.0,0.0791]
[1742163866818,0.193989,82479.0,82476.0,0.0791]
[1742163867025,0.206113,82479.0,82477.0,0.0503474]
[1742163867561,0.206112,82480.0,82477.0,0.0503474]
[1742163867562,0.0003386,82481.0,82478.0,0.012124]
[1742163867765,0.0003386,82481.0,82479.0,0.193987]
[1742163868146,0.0003386,82481.0,82479.0,0.206111]
[1742163868454,0.0003386,82481.0,82480.0,0.20611]
[1742163868660,0.0003386,82481.0,82480.0,0.42703294]
[1742163868861,0.0003386,82481.0,82480.0,0.07720294]
[1742163868988,0.0003386,82481.0,82477.0,0.1095714]
[1742163869411,0.20611,82480.0,82477.0,0.0974474]
[1742163869612,0.20611,82480.0,82477.0,0.0503474]
[1742163869834,0.206112,82479.0,82477.0,0.0503474]
[1742163870054,0.206112,82479.0,82478.0,1.5]
[1742163870254,0.206112,82479.0,82478.0,1.61957503]
[1742163870458,0.193986,82480.0,82478.0,1.61957503]
[1742163870667,0.012124,82479.0,82478.0,1.61957503]
[1742163870966,0.0003386,82481.0,82480.0,0.193986]
[1742163871172,0.0003386,82481.0,82480.0,0.27223444]
[1742163872100,0.0003386,82481.0,82480.0,0.06612444]
[1742163872960,0.1943226,82481.0,82480.0,0.06612444]
[1742163873165,0.2064466,82481.0,82480.0,0.06612444]
[1742163873384,0.193993,82477.0,82476.0,0.0791]
[1742163874333,0.1943226,82481.0,82476.0,0.091224]
[1742163875697,0.1943226,82481.0,82476.0,0.012124]
[1742163875893,0.20611,82480.0,82471.0,0.20613]
[1742163876115,0.193986,82480.0,82475.0,0.012124]
[1742163876312,0.1943236,82481.0,82477.0,0.193991]
[1742163876569,0.1943236,82481.0,82478.0,0.19399]
[1742163876872,0.193986,82480.0,82478.0,0.19399]
[1742163877050,0.1943236,82481.0,82479.0,0.043648]
[1742163878161,0.0003386,82481.0,82480.0,0.012124]
[1742163878317,0.0003386,82481.0,82480.0,0.42930228]
[1742163878521,0.012119,82510.0,82491.0,0.206082]
[1742163878720,0.193927,82505.0,82501.0,0.012121]
[1742163878976,0.193927,82505.0,82502.0,0.193934]
[1742163879883,0.193925,82506.0,82502.0,0.193934]
[1742163880082,0.00012406,82506.0,82504.0,0.206049]
[1742163880309,0.00012406,82506.0,82505.0,0.193927]
[1742163880515,0.00012406,82506.0,82505.0,0.0773632]
[1742163880899,0.193928,82505.0,82502.0,0.193934]
[1742163881038,0.19393,82504.0,82501.0,0.206057]
[1742163882078,0.193928,82505.0,82502.0,0.193934]
[1742163882695,0.20616906,82506.0,82502.0,0.193934]
[1742163882914,0.20616906,82506.0,82503.0,0.19393]
[1742163883279,0.00012406,82506.0,82504.0,0.2688692]
[1742163883611,0.00012406,82506.0,82491.0,0.0424297]
[1742163883612,0.012122,82493.0,82491.0,0.0424297]
[1742163883955,0.012122,82493.0,82472.0,0.305]
[1742163883956,0.193977,82484.0,82483.0,0.22174]
[1742163884095,0.2061,82484.0,82483.0,0.22174]
[1742163884450,0.2061,82484.0,82483.0,0.14304]
[1742163884859,0.193974,82485.0,82483.0,0.14304]
[1742163885058,0.193972,82487.0,82484.0,0.2150706]
[1742163885216,0.193967,82489.0,82484.0,0.2271936]
[1742163885424,0.193968,82488.0,82484.0,0.2271936]
[1742163885827,0.19397,82487.0,82484.0,0.2271936]
[1742163886228,0.206086,82490.0,82484.0,0.0332166]
[1742163886450,0.206086,82490.0,82485.0,0.04380526]
[1742163886656,0.193967,82489.0,82486.0,0.19397]
[1742163887656,0.206086,82490.0,82487.0,0.193969]
[1742163887841,0.00012406,82506.0,82499.0,0.193941]
[1742163888044,0.00012406,82506.0,82499.0,0.2349182]
[1742163888243,0.19405106,82506.0,82503.0,0.193931]
[1742163888654,0.20606,82500.0,82499.0,0.0288562]
[1742163888859,0.206069,82498.0,82493.0,0.012122]
[1742163889333,0.206063,82499.0,82495.0,0.193948]
[1742163889461,0.193944,82498.0,82496.0,1.5]
[1742163889854,0.0124586,82505.0,82496.0,1.5]
[1742163890205,0.01212,82504.0,82500.0,0.193939]
[1742163890409,0.193935,82502.0,82499.0,0.206062]
[1742163890867,0.193935,82502.0,82500.0,1.5]
[1742163891250,0.193932,82503.0,82500.0,1.693938]
[1742163891453,0.0003386,82505.0,82504.0,0.206049]
[1742163892056,0.0003386,82505.0,82504.0,1.706049]
[1742163895409,0.0003386,82505.0,82504.0,1.681049]
[1742163895632,0.0003386,82505.0,82503.0,0.1426]
[1742163895831,0.206049,82504.0,82503.0,0.1426]
[1742163896386,0.0003386,82505.0,82502.0,0.193932]
[1742163896565,0.1942676,82505.0,82502.0,0.193932]
[1742163896920,0.01212,82504.0,82494.0,0.336192]
[1742163897259,0.0003386,82505.0,82500.0,0.012121]
[1742163897460,0.0003386,82505.0,82499.0,0.193939]
[1742163897461,0.193935,82502.0,82499.0,0.193939]
[1742163897693,0.193934,82504.0,82500.0,0.03483]
[1742163897866,0.193932,82503.0,82500.0,0.193939]
[1742163898096,0.0003386,82505.0,82500.0,0.20606]
[1742163898252,0.0003386,82505.0,82501.0,0.012121]
[1742163898458,0.0003386,82505.0,82501.0,0.206057]
[1742163898660,0.193931,82504.0,82501.0,0.206057]
[1742163898860,0.193931,82504.0,82502.0,0.0436359]
[1742163899264,0.206052,82503.0,82502.0,0.0436359]
[1742163899433,0.206052,82503.0,82497.0,0.206066]
[1742163899638,0.193932,82503.0,82500.0,0.193939]
[1742163899835,0.0003386,82505.0,82501.0,0.193937]
[1742163900038,0.0003386,82505.0,82502.0,0.193934]
[1742163900280,0.0003386,82505.0,82504.0,0.286349]
[1742163900442,0.0003386,82505.0,82504.0,0.3575279]
[1742163900957,0.0003386,82505.0,82504.0,1.99164378]
[1742163901183,0.0003386,82505.0,82504.0,1.8575279]
[1742163901393,0.0003386,82505.0,82504.0,1.5]
[1742163901603,0.0003386,82505.0,82498.0,0.012121]
[1742163901809,0.0003386,82505.0,82504.0,0.193929]
[1742163902337,0.193932,82503.0,82502.0,0.02374932]
[1742163902969,0.206052,82503.0,82502.0,0.02374932]
[1742163903164,0.206052,82503.0,82502.0,0.03427425]
[1742163904473,0.19393,82504.0,82502.0,0.03427425]
[1742163904892,0.2063856,82505.0,82502.0,0.03427425]
[1742163905075,0.19393,82504.0,82502.0,0.22820625]
[1742163905319,0.0003386,82505.0,82504.0,0.206049]
[1742163905521,0.0003386,82505.0,82504.0,0.25311143]
[1742163906239,0.0003386,82505.0,82504.0,0.27580658]
[1742163907286,0.0003386,82505.0,82504.0,0.29034743]
[1742163907492,0.0003384,82512.0,82504.0,0.29034743]
[1742163907493,0.0003384,82512.0,82511.0,0.206032]
[1742163907691,0.193838,82543.0,82511.0,0.206032]
[1742163907692,0.012114,82543.0,82531.0,0.205982]
[1742163907900,0.00046243,82532.0,82531.0,0.20719348]
[1742163908095,0.00046243,82532.0,82531.0,0.287482]
[1742163909408,0.00046243,82532.0,82531.0,0.31017715]
[1742163909606,0.00046243,82532.0,82531.0,1.81017715]
[1742163909808,0.00046243,82532.0,82531.0,1.94015357]
[1742163911306,0.20644243,82532.0,82531.0,1.64227018]
[1742163911516,0.20644243,82532.0,82531.0,0.14227018]
[1742163911696,0.00046243,82532.0,82531.0,0.02269515]
[1742163911912,0.00046243,82532.0,82531.0,0.193866]
[1742163912111,0.00046243,82532.0,82530.0,0.205982]
[1742163912364,0.193875,82528.0,82526.0,0.14156]
[1742163912583,0.00046243,82532.0,82527.0,0.012117]
[1742163912823,0.00046243,82532.0,82530.0,0.193866]
[1742163914003,0.00046243,82532.0,82531.0,0.193866]
[1742163914767,0.00046243,82532.0,82531.0,0.205982]
[1742163915004,0.00046243,82532.0,82531.0,0.33719353]
[1742163915224,0.00046243,82532.0,82531.0,0.47009788]
[1742163915428,0.00046243,82532.0,82531.0,0.58967291]
[1742163915806,0.00046243,82532.0,82531.0,0.61231304]
[1742163917438,0.00046243,82532.0,82531.0,1.32901304]
[1742163917711,4.3e-07,82532.0,82531.0,1.37901304]
[1742163917891,0.0003382,82552.0,82551.0,0.090113]
[1742163918131,0.00075155,82552.0,82551.0,0.47658237]
[1742163918352,0.00075155,82552.0,82551.0,0.4753713]
[1742163918738,0.00075155,82552.0,82551.0,0.94524633]
[1742163919401,0.0003386,82562.0,82556.0,0.205919]
[1742163919620,0.00045379,82557.0,82552.0,0.012113]
[1742163919768,0.00045379,82557.0,82555.0,0.193809]
[1742163919985,0.012113,82554.0,82553.0,0.10416991]
[1742163920289,0.205923,82555.0,82551.0,0.0501993]
[1742163920537,0.19381,82555.0,82551.0,0.2440183]
[1742163920743,0.193812,82554.0,82551.0,0.0501993]
[1742163920950,0.193815,82553.0,82551.0,0.2440183]
[1742163921371,0.00045379,82557.0,82551.0,0.0623123]
[1742163921553,0.00045379,82557.0,82553.0,0.012113]
[1742163921756,0.00045379,82557.0,82554.0,0.193812]
[1742163921979,0.00134033,82556.0,82554.0,0.193812]
[1742163922402,0.193821,82550.0,82547.0,0.14104]
[1742163922603,0.193864,82532.0,82531.0,0.11957503]
[1742163922809,0.193871,82529.0,82528.0,0.1264]
[1742163923010,0.193869,82530.0,82528.0,0.26748]
[1742163923316,0.00144177,82529.0,82528.0,0.47347]
[1742163923485,0.00144177,82529.0,82528.0,0.5698167]
[1742163923701,0.012115,82536.0,82528.0,0.3638267]
[1742163923702,0.193866,82531.0,82528.0,0.3638267]
[1742163923920,0.205987,82529.0,82528.0,0.0963467]
[1742163924063,0.205987,82529.0,82528.0,0.00041335]
[1742163924064,0.20742877,82529.0,82528.0,0.00041335]
[1742163924269,0.205987,82529.0,82528.0,0.00041335]
[1742163924475,0.20741758,82529.0,82528.0,0.00041335]
[1742163924822,0.19530158,82529.0,82528.0,0.00041335]
[1742163925021,0.19530158,82529.0,82528.0,0.02226578]
[1742163925434,0.20741758,82529.0,82528.0,0.00041335]
[1742163927068,0.22640681,82529.0,82528.0,0.00041335]
[1742163927428,0.20741758,82529.0,82528.0,0.00041335]
[1742163929367,0.00143058,82529.0,82528.0,0.20640335]
[1742163929576,0.193861,82533.0,82530.0,0.193867]
[1742163929781,0.193861,82533.0,82531.0,0.11957503]
[1742163929983,0.193864,82532.0,82531.0,0.11957503]
[1742163930176,0.20598,82532.0,82531.0,0.11957503]
[1742163930785,0.193864,82532.0,82531.0,0.11957503]
[1742163930981,0.012115,82536.0,82533.0,0.193861]
[1742163931172,0.03110342,82539.0,82536.0,0.012115]
[1742163931173,0.01898842,82539.0,82536.0,0.012115]
[1742163931372,0.0131038,82548.0,82544.0,0.193835]
[1742163931373,0.193828,82547.0,82544.0,0.193835]
[1742163931611,0.193831,82546.0,82542.0,0.205953]
[1742163931832,0.193833,82545.0,82541.0,0.193841]
[1742163932044,0.193833,82545.0,82544.0,1.5]
[1742163932251,0.205938,82549.0,82544.0,1.512114]
[1742163932420,0.193833,82545.0,82544.0,1.5]
[1742163933522,0.205947,82545.0,82544.0,1.5]
[1742163933724,0.205952,82543.0,82542.0,0.0436144]
[1742163933928,0.193864,82532.0,82528.0,0.19428435]
[1742163934324,0.193862,82533.0,82529.0,0.19387]
[1742163934524,0.193865,82532.0,82529.0,0.19387]
[1742163934755,0.193865,82532.0,82529.0,0.02261787]
[1742163935025,0.193868,82530.0,82529.0,0.02261787]
[1742163935208,0.193868,82530.0,82529.0,0.06733129]
[1742163935673,0.205984,82530.0,82529.0,0.02261787]
[1742163936096,0.2249727,82530.0,82529.0,0.02261787]
[1742163936437,0.2249727,82530.0,82529.0,0.02278677]
[1742163936931,0.2249727,82530.0,82529.0,0.0001689]
[1742163937143,0.22648751,82530.0,82529.0,0.0001689]
[1742163937577,0.20749881,82530.0,82529.0,0.0001689]
[1742163937993,0.62309881,82530.0,82529.0,0.0001689]
[1742163938200,0.621584,82530.0,82529.0,0.0001689]
[1742163938982,0.505987,82529.0,82528.0,2.5e-07]
[1742163939387,0.587387,82529.0,82528.0,2.5e-07]
[1742163940491,0.6063807,82529.0,82528.0,2.5e-07]
[1742163942063,0.205987,82529.0,82528.0,2.5e-07]
[1742163942467,0.205984,82530.0,82528.0,2.5e-07]
[1742163942468,0.193868,82530.0,82528.0,2.5e-07]
[1742163942668,0.205987,82529.0,82528.0,2.5e-07]
[1742163944995,0.50750173,82529.0,82528.0,2.5e-07]
[1742163945203,0.94057803,82529.0,82528.0,2.5e-07]
[1742163945406,1.08285803,82529.0,82528.0,2.5e-07]
[1742163948397,1.08285803,82529.0,82528.0,1.5e-07]
[1742163948960,1.063867,82529.0,82528.0,1.5e-07]
[1742163951159,1.063427,82529.0,82528.0,1.5e-07]
[1742163953290,0.621587,82529.0,82528.0,1.5e-07]
[1742163953643,0.64057937,82529.0,82528.0,1.5e-07]
[1742163954436,0.94057937,82529.0,82528.0,1.5e-07]
[1742163955412,1.08225937,82529.0,82528.0,1.5e-07]
[1742163956205,0.64057937,82529.0,82528.0,1.5e-07]
[1742163956410,0.22497937,82529.0,82528.0,1.5e-07]
[1742163957373,0.22497937,82529.0,82528.0,0.01938847]
[1742163957509,0.22497937,82529.0,82528.0,0.09768847]
[1742163957716,0.01899237,82529.0,82528.0,0.07830015]
[1742163957963,0.22497937,82529.0,82528.0,0.07830015]
[1742163958600,0.01899237,82529.0,82528.0,0.07830015]
[1742163959178,0.22497937,82529.0,82528.0,0.07830015]
[1742163959357,0.205987,82529.0,82528.0,0.07830015]
[1742163959551,0.205987,82529.0,82528.0,1.59073017]
[1742163959964,0.193869,82530.0,82528.0,1.59073017]
[1742163960160,0.03,82529.0,82528.0,1.78460317]
[1742163960361,0.03,82529.0,82528.0,1.79672017]
[1742163960561,0.030338,82529.0,82528.0,1.79672017]
[1742163961291,0.0003378,82552.0,82544.0,0.20595]
[1742163961463,0.0003378,82552.0,82550.0,0.193821]
[1742163961661,0.0003378,82552.0,82548.0,0.205939]
[1742163961662,0.1941558,82552.0,82548.0,0.205939]
[1742163962070,0.1941558,82552.0,82549.0,1.693823]
[1742163962298,0.0003378,82552.0,82550.0,0.19382]
[1742163962502,0.0003378,82552.0,82551.0,0.32671831]
[1742163962657,0.0003378,82552.0,82551.0,0.32550703]
[1742163968185,0.2062678,82552.0,82551.0,0.11957503]
[1742163968382,0.193828,82548.0,82544.0,0.319835]
[1742163968587,0.193829,82547.0,82544.0,0.319835]
[1742163968790,0.193829,82547.0,82544.0,0.126]
[1742163968991,0.205969,82536.0,82531.0,0.0477]
[1742163969119,0.205969,82536.0,82535.0,0.17426789]
[1742163969494,0.205958,82542.0,82536.0,0.273753]
[1742163969495,0.012115,82541.0,82536.0,0.273753]
[1742163969828,0.193845,82540.0,82537.0,0.193851]
[1742163970025,0.193845,82540.0,82538.0,0.19385]
[1742163970424,0.193845,82540.0,82539.0,1.5]
[1742163970638,0.193845,82540.0,82539.0,1.61957503]
[1742163972328,0.205958,82541.0,82539.0,1.61957503]
[1742163972733,0.193839,82543.0,82540.0,0.193845]
[1742163972930,0.193841,82542.0,82539.0,0.31342203]
[1742163973398,0.193841,82542.0,82540.0,1.5]
[1742163973610,0.193841,82542.0,82541.0,0.11957503]
[1742163974943,0.205956,82542.0,82541.0,0.11957503]
[1742163975155,0.193852,82537.0,82536.0,0.0799]
[1742163976976,0.205984,82530.0,82529.0,0.000169]
[1742163978838,0.20749881,82530.0,82529.0,0.000169]
[1742163980298,0.22648999,82530.0,82529.0,0.000169]
[1742163980833,0.22764791,82530.0,82529.0,0.000169]
[1742163981060,0.2261331,82530.0,82529.0,0.000169]
[1742163981265,0.20714192,82530.0,82529.0,0.000169]
[1742163981715,0.20865673,82530.0,82529.0,0.000169]
[1742163982256,0.20714192,82530.0,82529.0,0.000169]
[1742163984285,0.22613241,82530.0,82529.0,0.000169]
[1742163985492,0.22647041,82530.0,82529.0,0.09907402]
[1742163985695,0.22647041,82530.0,82529.0,0.079669]
[1742163985899,0.22647041,82530.0,82529.0,0.000169]
[1742163992609,0.22531249,82530.0,82529.0,0.000169]
[1742163999878,0.01932849,82530.0,82529.0,0.000169]
[1742164000081,0.21319649,82530.0,82529.0,0.000169]
[1742164000287,0.21319649,82530.0,82529.0,0.11974403]
[1742164000487,0.22531249,82530.0,82529.0,0.11974403]
[1742164001182,0.01932849,82530.0,82529.0,0.31361503]
[1742164001357,0.000338,82530.0,82529.0,0.45163103]
[1742164002099,0.000338,82530.0,82529.0,0.46259867]
[1742164002402,0.000338,82530.0,82529.0,0.48529932]
[1742164003685,0.000338,82530.0,82529.0,1.98529932]
[1742164004245,0.000338,82530.0,82529.0,2.12437932]
[1742164004863,0.000338,82530.0,82529.0,2.10167867]
[1742164005099,0.000338,82530.0,82529.0,2.12438611]
[1742164012056,0.012454,82530.0,82529.0,1.52287644]
[1742164012262,0.206322,82530.0,82529.0,0.02287644]
[1742164012620,0.20748581,82530.0,82529.0,0.02287644]
[1742164012820,0.59866907,82530.0,82529.0,4.4e-07]
[1742164013024,1.15171432,82530.0,82529.0,4.4e-07]
[1742164013344,0.505987,82529.0,82528.0,1.5e-07]
[1742164013872,0.97143986,82529.0,82528.0,1.5e-07]
[1742164014067,0.98598071,82529.0,82528.0,1.5e-07]
[1742164014357,0.98598071,82529.0,82498.0,0.000169]
[1742164014358,0.012121,82499.0,82498.0,0.000169]
[1742164014557,0.20757741,82499.0,82498.0,0.00029303]
[1742164015572,0.22657438,82499.0,82498.0,0.00029303]
[1742164015977,0.22505897,82499.0,82498.0,0.00029303]
[1742164020449,0.01899697,82499.0,82498.0,0.00029303]
[1742164020631,0.4156,82504.0,82503.0,0.193932]
[1742164020838,0.193923,82507.0,82504.0,0.01212]
[1742164021157,0.193923,82507.0,82506.0,1.5]
[1742164022176,0.206043,82507.0,82506.0,1.5]
[1742164025636,0.206049,82504.0,82503.0,0.048328]
[1742164026643,0.193937,82501.0,82498.0,0.19423703]
[1742164027042,0.20606,82500.0,82498.0,0.00029303]
[1742164027252,0.206062,82499.0,82498.0,0.00029303]
[1742164029091,0.193939,82500.0,82498.0,0.00029303]
[1742164029317,0.193922,82508.0,82498.0,0.00029303]
[1742164029318,0.206047,82506.0,82501.0,0.193936]
[1742164029525,0.19393,82504.0,82500.0,0.012121]
[1742164029935,0.193929,82504.0,82501.0,0.193936]
[1742164030753,0.193929,82504.0,82500.0,0.20606]
[1742164030953,0.193929,82504.0,82501.0,0.11957503]
[1742164031411,0.193929,82504.0,82501.0,0.31351103]
[1742164031609,0.206047,82505.0,82502.0,0.193933]
[1742164032422,0.193925,82506.0,82502.0,0.193933]
[1742164032619,0.193905,82515.0,82501.0,0.13169603]
[1742164032620,0.0009844,82524.0,82507.0,0.01212]
[1742164032865,0.012118,82520.0,82515.0,0.193902]
[1742164033072,0.193892,82521.0,82516.0,0.0193902]
[1742164033190,0.193897,82518.0,82516.0,0.0193902]
[1742164033391,0.193899,82517.0,82516.0,0.0193902]
[1742164033600,0.193883,82524.0,82521.0,0.206008]
[1742164033842,0.193883,82524.0,82517.0,0.193899]
[1742164033843,0.206004,82523.0,82522.0,0.04314152]
[1742164034044,0.193899,82517.0,82516.0,0.0193902]
[1742164034239,0.193899,82517.0,82516.0,1.5193902]
[1742164034704,0.206017,82517.0,82516.0,1.5193902]
[1742164034880,0.206017,82517.0,82516.0,1.5]
[1742164035377,0.193933,82503.0,82501.0,0.082969]
[1742164035585,0.01212,82505.0,82501.0,0.082969]
[1742164036089,0.193927,82507.0,82504.0,0.193928]
[1742164036381,0.012118,82517.0,82507.0,0.01212]
[1742164036601,0.012119,82513.0,82503.0,0.01212]
[1742164036894,0.206027,82514.0,82508.0,0.01212]
[1742164037041,0.193913,82511.0,82509.0,0.193918]
[1742164038304,0.012118,82516.0,82509.0,0.012119]
[1742164038529,0.193911,82512.0,82509.0,0.206032]
[1742164038727,0.012118,82516.0,82510.0,0.03582152]
[1742164038926,0.193901,82516.0,82513.0,0.193906]
[1742164039572,0.193901,82517.0,82513.0,0.193906]
[1742164039573,0.193901,82517.0,82514.0,1.693905]
[1742164040052,0.206023,82515.0,82514.0,1.5]
[1742164041594,0.206017,82517.0,82514.0,1.693905]
[1742164041808,0.193901,82516.0,82514.0,1.61957503]
[1742164041959,0.193904,82515.0,82514.0,1.61957503]
[1742164042752,0.206023,82515.0,82514.0,1.61957503]
[1742164042953,0.206023,82515.0,82514.0,0.11957503]
[1742164043178,0.193907,82514.0,82510.0,0.21761752]
[1742164043377,0.012119,82514.0,82511.0,1.5]
[1742164043584,0.012118,82516.0,82511.0,1.512119]
[1742164043780,0.193907,82514.0,82512.0,0.19391]
[1742164044002,0.193907,82514.0,82511.0,1.512119]
[1742164044003,0.193907,82514.0,82511.0,0.206032]
[1742164044224,0.193907,82514.0,82512.0,0.06539295]
[1742164044419,0.193907,82514.0,82513.0,1.5]
[1742164044772,0.206026,82514.0,82513.0,1.5]
[1742164045703,0.206024,82515.0,82513.0,1.5]
[1742164045926,0.193905,82515.0,82513.0,1.693908]
[1742164046128,0.193905,82515.0,82514.0,0.03994122]
[1742164047115,0.20602,82516.0,82514.0,0.03994122]
[1742164047327,0.193904,82515.0,82514.0,0.03994122]
[1742164049212,0.1942372,82517.0,82514.0,0.23384722]
[1742164049355,0.0003382,82517.0,82516.0,0.193901]
[1742164049548,0.0003382,82517.0,82516.0,1.78381269]
[1742164049984,0.0003382,82517.0,82516.0,1.79593069]
[1742164054384,0.0003382,82517.0,82516.0,1.58991169]
[1742164055049,0.0003382,82517.0,82516.0,1.78381269]
[1742164055249,0.0003382,82517.0,82516.0,1.79593069]
[1742164057538,0.0003382,82517.0,82516.0,1.58991169]
[1742164057777,0.0003382,82517.0,82516.0,1.78381269]
[1742164058921,0.0003382,82517.0,82516.0,1.77881269]
[1742164059140,0.0003382,82517.0,82516.0,1.79093069]
[1742164059345,0.0003382,82517.0,82516.0,1.58491169]
[1742164060545,0.1942372,82517.0,82516.0,1.58491169]
[1742164060747,0.2063552,82517.0,82516.0,1.58491169]
[1742164065899,0.2063552,82517.0,82514.0,0.03994122]
[1742164065900,0.206054,82502.0,82501.0,0.0001691]
[1742164066453,0.20756935,82502.0,82501.0,0.0001691]
[1742164067041,0.206054,82502.0,82501.0,0.0001691]
[1742164068349,0.20756942,82502.0,82501.0,0.0001691]
[1742164069177,0.22656675,82502.0,82501.0,0.0001691]
[1742164069382,0.22656675,82502.0,82501.0,1e-07]
[1742164069383,0.94216675,82502.0,82501.0,1e-07]
[1742164069580,0.94216675,82502.0,82485.0,1.5]
[1742164069581,0.52060285,82499.0,82498.0,1.3e-07]
[1742164073219,0.506062,82499.0,82498.0,1.3e-07]
[1742164073430,0.645062,82499.0,82498.0,1.3e-07]
[1742164073602,0.6640624,82499.0,82498.0,1.3e-07]
[1742164074027,0.3640624,82499.0,82498.0,1.3e-07]
[1742164075027,0.4446624,82499.0,82498.0,1.3e-07]
[1742164076229,0.3640624,82499.0,82498.0,1.3e-07]
[1742164077774,0.2250624,82499.0,82498.0,1.3e-07]
[1742164077973,0.206062,82499.0,82498.0,1.3e-07]
[1742164080817,0.206062,82499.0,82498.0,0.01939554]
[1742164081050,0.193939,82500.0,82498.0,1.3e-07]
[1742164081247,0.193929,82505.0,82500.0,0.012121]
[1742164081444,0.01212,82507.0,82498.0,1.3e-07]
[1742164081445,0.01212,82503.0,82498.0,1.3e-07]
[1742164081690,0.01212,82502.0,82498.0,1.3e-07]
[1742164081899,0.193938,82501.0,82498.0,1.3e-07]
[1742164082099,0.012121,82500.0,82499.0,0.02293104]
[1742164082302,0.206062,82500.0,82499.0,0.02293104]
[1742164082797,0.206062,82499.0,82498.0,1.3e-07]
[1742164083619,0.206062,82499.0,82498.0,0.00016923]
[1742164085012,0.193939,82500.0,82498.0,0.00016923]
[1742164085428,0.012121,82500.0,82498.0,0.00016923]
[1742164085627,0.206062,82499.0,82498.0,0.00016923]
[1742164085800,0.206062,82499.0,82498.0,0.02069298]
[1742164086021,0.193935,82502.0,82499.0,0.193939]
[1742164086237,0.41184946,82527.0,82503.0,0.19393]
[1742164086238,0.193925,82508.0,82503.0,0.19393]
[1742164086497,0.193916,82510.0,82506.0,0.193925]
[1742164086847,0.19392,82508.0,82507.0,0.0459297]
[1742164090957,0.206037,82509.0,82507.0,0.0459297]
[1742164091319,0.212909,82511.0,82508.0,0.193919]
[1742164091531,0.193916,82510.0,82507.0,0.0459297]
[1742164091772,0.193916,82510.0,82507.0,0.2398517]
[1742164091976,0.018994,82511.0,82510.0,0.193915]
[1742164094929,0.0003382,82516.0,82515.0,2.131023]
[1742164098794,0.0003382,82516.0,82515.0,2.14556385]
[1742164103137,0.0003382,82516.0,82515.0,2.55726385]
[1742164103350,0.0003382,82516.0,82515.0,2.67683888]
[1742164105769,0.000338,82530.0,82529.0,0.52052785]
[1742164105991,0.000338,82530.0,82529.0,0.79078785]
[1742164106345,0.000338,82530.0,82529.0,2.41036288]
[1742164106557,0.000338,82530.0,82529.0,2.82206288]
[1742164106786,0.000338,82530.0,82529.0,2.87315572]
[1742164107833,1e-06,82530.0,82529.0,2.87815572]
[1742164108007,1e-06,82530.0,82529.0,2.92815572]
[1742164109357,0.000338,82555.0,82551.0,0.205932]
[1742164109609,0.00075123,82552.0,82551.0,1.328179]
[1742164109973,0.00075123,82552.0,82551.0,1.37289758]
[1742164110158,0.00075123,82552.0,82551.0,2.87289758]
[1742164110718,2.3e-07,82552.0,82551.0,2.92289758]
[1742164111109,3.8e-07,82562.0,82561.0,0.017112]
[1742164111309,0.0003382,82573.0,82561.0,0.017112]
[1742164111310,0.0003382,82573.0,82572.0,0.59822085]
[1742164111536,0.0003382,82573.0,82572.0,1.26841588]
[1742164111537,0.00046218,82573.0,82572.0,1.26841588]
[1742164111922,0.00046218,82573.0,82572.0,2.76841588]
[1742164112124,0.00046218,82573.0,82572.0,2.82614866]
[1742164112376,0.00046218,82573.0,82572.0,2.83114866]
[1742164112531,0.00046218,82573.0,82572.0,2.95072369]
[1742164112929,1.8e-07,82573.0,82572.0,2.95072369]
[1742164113385,1.8e-07,82573.0,82572.0,3.00072369]
[1742164113557,1.8e-07,82573.0,82572.0,3.00992641]
[1742164114121,0.0003382,82586.0,82585.0,0.634747]
[1742164114239,1e-06,82588.0,82587.0,0.510843]
[1742164114444,1e-06,82588.0,82587.0,0.86167888]
[1742164114677,0.025999,82621.0,82589.0,0.52537885]
[1742164114956,0.025999,82621.0,82594.0,1.90944785]
[1742164115102,0.025999,82621.0,82594.0,2.02902288]
[1742164115914,0.025999,82621.0,82612.0,0.20578]
[1742164116185,0.00046216,82613.0,82612.0,0.34466]
[1742164116678,0.00046216,82613.0,82612.0,1.84466]
[1742164116880,0.00046216,82613.0,82612.0,1.8899724]
[1742164117666,0.00046216,82613.0,82612.0,2.1899724]
[1742164117869,0.00046216,82613.0,82612.0,2.20451325]
[1742164118074,0.00046216,82613.0,82612.0,2.32408828]
[1742164120176,0.00046216,82613.0,82612.0,2.1899724]
[1742164122410,0.00046216,82613.0,82612.0,1.8453124]
[1742164122608,0.00046216,82613.0,82612.0,1.9841124]
[1742164122834,0.00046216,82613.0,82612.0,1.9962164]
[1742164123527,0.00046216,82613.0,82612.0,1.9841124]
[1742164123869,0.00046216,82613.0,82612.0,1.5]
[1742164124254,0.01412678,82613.0,82612.0,1.5]
[1742164124611,0.20780078,82613.0,82612.0,1.5]
[1742164127165,0.205786,82610.0,82609.0,0.1388]
[1742164127564,0.20734662,82610.0,82609.0,0.1388]
[1742164127722,0.20734662,82610.0,82609.0,1.65268]
[1742164128327,0.00156062,82610.0,82609.0,1.65268]
[1742164128527,0.20734662,82610.0,82609.0,1.51388]
[1742164129155,0.19524162,82610.0,82609.0,1.51388]
[1742164129801,0.20734662,82610.0,82609.0,1.51388]
[1742164130768,0.19524162,82610.0,82609.0,1.51388]
[1742164130968,0.00156062,82610.0,82609.0,1.525985]
[1742164131227,0.00046216,82613.0,82611.0,0.193678]
[1742164131365,0.00046216,82613.0,82612.0,0.31325103]
[1742164131568,0.00046216,82613.0,82612.0,0.32535503]
[1742164132192,0.00046216,82613.0,82612.0,1.82535503]
[1742164132393,0.00046216,82613.0,82612.0,1.90665503]
[1742164132986,0.00046216,82613.0,82612.0,1.82535503]
[1742164133810,0.00046216,82613.0,82612.0,1.83989588]
[1742164134908,0.00046216,82613.0,82612.0,2.13989588]
[1742164135115,0.00046216,82613.0,82612.0,2.14077588]
[1742164135546,0.00046216,82613.0,82612.0,2.26035091]